bitfinex/quotes_ETHUSD_20220118
["timestamp","ask_amount","ask_price","bid_price","bid_amount"]
[1642497466948,1.26540853,3145.4,3145.1,0.00795792]
[1642497468752,1.56540853,3145.4,3145.1,0.00795792]
[1642497468955,0.127,3145.3,3145.1,0.00795792]
[1642497473756,3.38530786,3145.3,3145.1,0.00795792]
[1642497474355,0.92197,3145.3,3145.1,0.00795792]
[1642497476263,0.92197,3145.3,3144.5,0.01908]
[1642497476264,0.79506,3145.0,3144.5,0.01908]
[1642497476460,0.79506,3145.0,3144.0,0.06960052]
[1642497476461,5.05,3144.8,3144.0,0.06960052]
[1642497476659,0.5852,3144.7,3144.6,0.00284212]
[1642497476858,1.8852,3144.7,3144.6,0.00284212]
[1642497477059,4.6352,3144.7,3144.6,0.00284212]
[1642497477298,5.3,3144.6,3143.3,0.1272]
[1642497477499,5.3,3144.6,3143.2,1.608867]
[1642497477500,0.8852,3144.5,3144.1,0.00284212]
[1642497477696,1.92233182,3144.5,3143.2,1.46170912]
[1642497477898,0.01250339,3144.2,3143.3,0.00454739]
[1642497478096,0.5852,3144.1,3143.3,0.00454739]
[1642497478395,0.8852,3144.1,3143.3,0.00454739]
[1642497478602,0.2939,3143.8,3143.3,0.00454739]
[1642497478799,0.458,3143.7,3143.3,0.00454739]
[1642497479199,0.758,3143.7,3143.3,0.00454739]
[1642497479600,1.5310481,3143.6,3143.3,0.00454739]
[1642497479902,2.4836481,3143.6,3143.3,0.00454739]
[1642497480102,5.20074303,3143.6,3143.3,0.00454739]
[1642497480703,0.758,3143.5,3143.3,0.00454739]
[1642497480963,5.79539,3143.4,3142.6,0.1272]
[1642497481153,0.458,3143.3,3142.6,0.1272]
[1642497481351,0.458,3143.3,3143.1,0.00113684]
[1642497481652,0.758,3143.3,3143.1,0.00113684]
[1642497481952,4.43531991,3143.2,3143.1,0.00113684]
[1642497482169,0.758,3143.3,3143.1,0.00113684]
[1642497482170,3.47509493,3143.3,3143.1,0.00113684]
[1642497483353,8.78368413,3143.2,3143.1,0.00113684]
[1642497483553,10.93348413,3143.2,3143.1,0.00113684]
[1642497483753,6.69148413,3143.2,3143.1,0.00113684]
[1642497483961,6.69148413,3143.2,3141.0,0.5]
[1642497483962,5.3,3142.8,3141.0,0.5]
[1642497484159,5.3,3142.8,3140.9,2.56239096]
[1642497484160,5.722,3142.3,3140.9,2.56239096]
[1642497484358,5.722,3142.3,3140.4,7.13037298]
[1642497484359,0.01241879,3141.8,3140.4,6.313317]
[1642497484559,0.5853,3141.7,3140.7,1.48775804]
[1642497484799,0.5853,3141.7,3140.7,1.08775804]
[1642497484800,0.5875737,3141.7,3140.7,1.08775804]
[1642497485001,0.00170528,3141.6,3140.8,0.0773]
[1642497485200,0.00170528,3141.6,3140.8,0.0273]
[1642497485400,0.00113685,3141.5,3139.8,8.09198589]
[1642497485600,0.00113685,3141.5,3139.9,2.94063262]
[1642497485808,0.26549997,3142.1,3140.2,0.00397896]
[1642497485809,0.00284212,3141.4,3140.2,0.00397896]
[1642497486005,0.00284212,3141.4,3139.0,0.01592855]
[1642497486006,0.2672,3141.0,3139.0,0.01592855]
[1642497486203,0.2672,3141.0,3137.6,0.66228036]
[1642497486204,5.3,3140.2,3137.6,0.66228036]
[1642497486402,5.3,3140.2,3136.1,6.55589724]
[1642497486403,0.01266661,3138.7,3136.1,6.55589724]
[1642497486602,0.01266661,3138.7,3136.2,1.53140641]
[1642497486603,0.01231376,3137.7,3136.2,1.53140641]
[1642497486802,0.01231376,3137.7,3135.6,10.97509883]
[1642497486803,0.01245196,3136.3,3135.6,9.71770524]
[1642497487004,0.01245196,3136.3,3134.9,2.71744086]
[1642497487005,0.0778384,3135.6,3134.9,2.71744086]
[1642497487203,0.0778384,3135.6,3133.8,0.47539807]
[1642497487204,0.26569997,3135.5,3133.8,0.47539807]
[1642497487399,0.26569997,3135.5,3133.3,2.5469162]
[1642497487400,23.82,3135.1,3133.6,0.55704403]
[1642497487602,23.82,3135.1,3133.3,2.5469162]
[1642497487603,0.0778384,3133.8,3133.3,1.77636023]
[1642497487802,0.0778384,3133.8,3132.5,0.01545017]
[1642497487803,0.458,3133.7,3132.5,0.01545017]
[1642497488029,0.01228519,3133.5,3132.2,5.78031931]
[1642497488203,0.458,3133.4,3132.8,0.01250532]
[1642497488454,0.7544,3133.7,3132.8,0.01250532]
[1642497488455,0.2507,3133.5,3132.8,0.01250532]
[1642497488654,8.85222699,3134.0,3132.9,0.1276]
[1642497488850,0.14047366,3135.4,3133.1,5.3]
[1642497488851,3.0,3134.8,3133.1,5.3]
[1642497489053,3.53900399,3135.2,3133.3,0.01274713]
[1642497489353,2.93952162,3135.1,3133.4,0.59459478]
[1642497489551,0.13819997,3135.5,3134.7,0.01210097]
[1642497489552,4.29665836,3135.4,3134.7,0.01210097]
[1642497489754,2.37166047,3135.7,3135.4,1.55994823]
[1642497489952,2.37166047,3135.7,3135.4,6.027e-05]
[1642497490153,0.12920527,3135.6,3134.8,0.1275]
[1642497490552,0.00113684,3135.5,3135.4,1.19466802]
[1642497490753,0.00113684,3135.5,3134.9,0.0022737]
[1642497490754,0.00113684,3135.5,3135.0,8.504e-05]
[1642497490955,0.1275,3135.4,3134.9,0.0022737]
[1642497491152,0.1275,3135.4,3134.3,0.0123173]
[1642497491153,0.1275,3135.4,3135.1,0.00113685]
[1642497491351,0.1275,3135.4,3135.0,1.20835644]
[1642497491352,0.00113684,3135.5,3135.0,1.20835644]
[1642497491553,0.1275,3135.4,3135.1,0.00113685]
[1642497491754,0.00113684,3135.5,3135.2,1.24651916]
[1642497491953,0.00113684,3135.5,3135.3,0.1275]
[1642497492405,3.684e-05,3135.5,3135.4,0.458]
[1642497492600,3.684e-05,3135.5,3135.4,0.1275]
[1642497492805,3.684e-05,3135.5,3135.3,0.1275]
[1642497493203,3.684e-05,3135.5,3135.2,0.1275]
[1642497493403,3.684e-05,3135.5,3135.3,0.458]
[1642497493610,2.99466558,3135.8,3135.5,4.45]
[1642497493804,7.81897437,3136.3,3135.7,4.8]
[1642497494005,0.00397897,3136.2,3135.8,0.5855]
[1642497494203,20.0,3136.4,3135.9,5.3]
[1642497494504,20.0,3136.4,3136.0,3.52502162]
[1642497494703,0.00227369,3136.3,3136.1,0.458]
[1642497495006,4.9911093,3137.5,3136.4,4.55]
[1642497495205,4.9911093,3137.5,3136.8,5.722]
[1642497495404,4.9911093,3137.5,3136.9,0.1275]
[1642497495604,4.9911093,3137.5,3136.5,3.23952162]
[1642497495605,9.3e-06,3137.5,3137.1,2.5]
[1642497495803,9.3e-06,3137.5,3136.6,0.5105]
[1642497495804,9.3e-06,3137.5,3136.6,0.1275]
[1642497496059,6.23888663,3137.9,3136.7,0.383]
[1642497496264,0.1274,3138.1,3136.7,0.383]
[1642497496461,0.00852635,3137.8,3136.7,0.373]
[1642497496662,0.00852635,3137.8,3136.6,0.1275]
[1642497496663,5.4275,3137.7,3136.6,0.1275]
[1642497496966,1.49430283,3136.6,3135.9,2.2885]
[1642497497163,0.00738951,3137.6,3135.9,2.2885]
[1642497497164,0.1275,3136.5,3135.9,2.2885]
[1642497497361,0.1275,3136.5,3136.0,0.00170527]
[1642497497362,0.00113685,3136.5,3136.0,0.00170527]
[1642497497560,0.1275,3137.0,3136.0,0.00170527]
[1642497497762,0.1275,3137.0,3135.4,0.00587799]
[1642497497763,0.01276658,3136.4,3135.9,0.00227369]
[1642497497960,0.383,3136.3,3135.9,0.00227369]
[1642497498162,0.1275,3136.2,3136.0,0.14541491]
[1642497498365,0.1275,3136.2,3136.0,1.491e-05]
[1642497498567,1.10827985,3136.0,3135.4,0.00587799]
[1642497498768,6.44836159,3135.5,3135.4,0.00587799]
[1642497498965,7.97383812,3135.5,3135.4,0.00587799]
[1642497499165,3.2,3135.4,3134.2,1.08327799]
[1642497499366,0.1275,3135.4,3134.2,1.08327799]
[1642497499566,0.1275,3135.4,3134.4,0.14573462]
[1642497500021,0.1275,3135.4,3135.3,1.47824749]
[1642497500227,0.1275,3135.5,3135.3,1.47824749]
[1642497500422,0.1275,3135.8,3135.3,0.00454738]
[1642497500624,0.1275,3136.2,3135.4,0.00397896]
[1642497500825,0.1275,3136.2,3134.4,0.00966319]
[1642497501026,1.49324304,3135.0,3134.4,0.00966319]
[1642497501427,1.49324304,3135.0,3134.5,1.45712015]
[1642497501627,1.49324304,3135.0,3134.5,1.75712015]
[1642497501824,1.49324304,3135.1,3134.6,0.00852635]
[1642497502428,2.23932586,3135.3,3134.9,0.01243652]
[1642497502830,2.23932586,3135.3,3135.0,1.54481643]
[1642497503030,0.1275,3135.9,3135.1,4.9]
[1642497503231,0.1275,3135.9,3135.1,5.28868423]
[1642497503461,0.1275,3135.9,3135.2,3.42890112]
[1642497503652,0.1275,3135.9,3135.2,4.11190112]
[1642497503853,0.1275,3135.9,3135.3,0.13204738]
[1642497504058,3.7331076,3136.5,3135.3,0.00454738]
[1642497504059,1.4646815,3135.7,3135.3,0.00454738]
[1642497504254,1.4646815,3135.7,3135.4,0.00397896]
[1642497504452,1.4646815,3135.7,3135.1,0.00568423]
[1642497504853,1.4646815,3135.7,3134.9,0.00682108]
[1642497504854,0.1275,3135.6,3134.9,0.00682108]
[1642497505056,0.1275,3135.6,3134.2,1.08327799]
[1642497505057,1.28713429,3134.9,3134.2,1.08327799]
[1642497505256,1.28713429,3134.9,3133.8,4.75559239]
[1642497505257,0.1275,3134.8,3134.5,0.00227369]
[1642497505656,0.8132,3134.9,3133.9,0.00568423]
[1642497505858,0.16130609,3135.0,3133.8,0.13375265]
[1642497506058,0.16130609,3135.0,3133.9,0.00568423]
[1642497506059,0.1275,3135.0,3133.9,0.00568423]
[1642497506355,1.44930999,3134.4,3133.9,0.00568423]
[1642497506755,0.1275,3134.8,3133.9,0.00568423]
[1642497507193,0.1275,3135.1,3133.9,0.00568423]
[1642497507398,0.1275,3135.1,3133.5,0.00795793]
[1642497507599,0.12863685,3135.1,3133.6,0.1275]
[1642497507802,0.12863685,3135.1,3134.5,1.45170601]
[1642497507999,0.00113685,3135.1,3134.5,1.45170601]
[1642497508200,0.00113685,3135.1,3134.6,0.12920527]
[1642497508398,0.00113685,3135.1,3134.7,0.383]
[1642497508599,0.00113685,3135.1,3134.8,0.1275]
[1642497508799,0.00113685,3135.1,3134.8,0.5105]
[1642497509600,0.00113685,3135.1,3134.8,0.383]
[1642497509801,0.00113685,3135.1,3134.7,0.00113684]
[1642497510003,0.1275,3135.0,3134.7,0.00113684]
[1642497510204,3.71206823,3134.8,3134.1,0.00454738]
[1642497510404,1.20752103,3134.3,3133.8,0.00625265]
[1642497510608,2.64632103,3134.3,3133.8,0.00625265]
[1642497510959,5.3,3134.1,3133.4,1.1319]
[1642497511157,0.1275,3134.0,3133.6,0.00113685]
[1642497511354,1.25922644,3133.7,3133.6,0.00113685]
[1642497511555,0.1275,3133.7,3133.6,0.00113685]
[1642497511760,0.1275,3133.9,3133.4,0.0022737]
[1642497511961,0.1275,3133.9,3132.9,0.1275]
[1642497511962,0.1275,3133.9,3133.1,0.333]
[1642497512154,0.1275,3133.9,3133.1,0.383]
[1642497512357,0.1275,3133.9,3133.2,0.00341055]
[1642497512759,0.1275,3134.0,3133.4,5.3]
[1642497512959,2.96796185,3134.5,3134.0,5.3]
[1642497513159,3.7331076,3134.9,3134.2,5.2]
[1642497513360,0.1275,3135.8,3134.9,1.47274389]
[1642497513559,1.56077239,3135.8,3135.0,0.5105]
[1642497513760,0.00738951,3135.3,3135.0,0.383]
[1642497514265,0.00682108,3135.2,3134.5,0.1275]
[1642497514460,0.00682108,3135.2,3133.9,0.1275]
[1642497514717,0.13375266,3135.1,3133.7,3.455]
[1642497515102,0.00568424,3135.0,3133.8,3.10777138]
[1642497515307,0.1275,3134.9,3134.5,1.4421415]
[1642497515503,0.13261581,3134.9,3134.5,1.4421415]
[1642497515704,0.00454739,3134.8,3134.5,1.4421415]
[1642497516004,0.00397897,3134.7,3133.8,3.26777582]
[1642497516204,0.00397897,3134.7,3133.8,0.00113684]
[1642497516405,0.00341054,3134.6,3133.8,0.00113684]
[1642497516706,0.8996,3135.4,3133.8,0.00113684]
[1642497516707,0.00284212,3134.5,3133.8,0.00113684]
[1642497516910,1.15427185,3134.5,3133.8,0.00113684]
[1642497517106,0.0022737,3134.4,3133.8,1.22123365]
[1642497517307,0.0022737,3134.4,3133.8,0.00113684]
[1642497517506,0.12920527,3134.3,3133.8,0.00113684]
[1642497517706,0.00170527,3134.3,3133.8,0.00113684]
[1642497518011,0.12863685,3134.2,3133.8,0.00113684]
[1642497518447,0.1275,3134.2,3133.8,3.684e-05]
[1642497518649,0.1275,3134.2,3132.5,2.60259953]
[1642497518650,0.00166843,3134.1,3132.7,0.0062895]
[1642497518850,0.00166843,3134.1,3132.6,0.00685793]
[1642497518851,0.1275,3134.0,3132.6,0.00685793]
[1642497519051,0.8567,3134.0,3132.6,0.00685793]
[1642497519454,1.1567,3134.0,3132.2,0.13663162]
[1642497519654,1.54028043,3133.2,3132.6,1.24954085]
[1642497519852,1.54028043,3133.2,3132.5,0.02715981]
[1642497520053,0.3,3133.2,3132.7,0.0062895]
[1642497520253,0.3,3133.2,3132.6,0.00685793]
[1642497520452,0.1275,3133.6,3133.1,0.01263422]
[1642497520655,0.1275,3133.9,3132.4,0.00799477]
[1642497520851,0.1275,3133.9,3133.2,0.00344739]
[1642497520852,1.38042193,3133.8,3133.2,0.00344739]
[1642497521054,1.38042193,3133.8,3132.3,0.0085632]
[1642497521055,18.6475,3133.7,3132.3,0.0085632]
[1642497521255,0.01272731,3133.1,3132.3,0.0085632]
[1642497521456,0.1275,3133.0,3132.3,0.0085632]
[1642497521655,0.9416,3133.0,3132.3,0.0085632]
[1642497521853,1.3130098,3132.8,3132.3,0.0085632]
[1642497522058,0.9416,3133.0,3132.3,0.0085632]
[1642497522060,0.3,3132.4,3132.3,0.0085632]
[1642497522511,0.1275,3133.0,3132.3,0.0085632]
[1642497522709,18.56243707,3133.5,3132.1,0.00970004]
[1642497522710,0.1275,3133.3,3132.1,0.00970004]
[1642497522910,0.1275,3133.4,3132.1,0.00970004]
[1642497523114,1.25219881,3132.3,3132.1,0.00970004]
[1642497523512,0.383,3133.2,3132.1,0.00970004]
[1642497523513,0.1277,3132.2,3132.1,0.00970004]
[1642497523712,1.65723332,3133.4,3132.1,3.70970004]
[1642497523914,0.1275,3134.1,3133.3,0.01244459]
[1642497524115,3.22018388,3134.1,3133.3,0.01244459]
[1642497524313,4.08617785,3133.4,3132.2,0.1275]
[1642497524513,4.08617785,3133.4,3132.4,0.1275]
[1642497524716,1.23384996,3132.7,3132.3,1.52315533]
[1642497524913,1.23384996,3132.7,3132.4,0.1275]
[1642497525113,1.23384996,3132.7,3132.4,0.13549477]
[1642497525313,1.23384996,3132.7,3132.5,0.00742635]
[1642497525713,1.23384996,3132.7,3132.2,0.00913162]
[1642497525954,1.23384996,3132.7,3132.3,0.1275]
[1642497526154,5.12126516,3132.4,3132.3,0.1275]
[1642497526351,5.12126516,3132.4,3131.5,0.05005]
[1642497526352,3.95,3132.4,3132.0,0.0275]
[1642497526558,0.3,3132.4,3132.0,0.0275]
[1642497526752,1.26883026,3132.7,3132.1,0.00970004]
[1642497526753,1.23384996,3132.7,3132.1,0.00970004]
[1642497527153,0.1277,3133.4,3132.1,0.00970004]
[1642497527358,0.1275,3133.5,3132.2,1.36213468]
[1642497527658,2.22193951,3133.3,3132.3,0.0085632]
[1642497527858,2.51382415,3133.3,3132.3,0.0085632]
[1642497528257,2.51382415,3133.3,3132.4,0.1276]
[1642497528458,3.22018388,3133.2,3132.4,0.1276]
[1642497528659,3.22018388,3133.2,3132.5,0.00742635]
[1642497528660,0.1275,3133.1,3132.5,0.00742635]
[1642497529057,18.6475,3133.1,3132.5,0.00742635]
[1642497529358,19.44578,3133.1,3132.5,0.00742635]
[1642497529556,1.53245709,3132.8,3132.5,0.00742635]
[1642497529798,0.1275,3132.7,3132.5,0.00742635]
[1642497531001,1.43378209,3132.1,3131.8,0.01290185]
[1642497531198,0.1275,3132.7,3131.8,0.01290185]
[1642497531404,0.1275,3132.7,3132.1,0.00227369]
[1642497532607,3.6055,3132.8,3132.1,0.00227369]
[1642497532805,3.6055,3132.8,3132.1,0.38527369]
[1642497533005,0.00113685,3132.7,3132.2,0.1275]
[1642497533204,0.00113685,3132.7,3132.2,0.12920527]
[1642497533205,2.72675909,3132.6,3132.2,0.12920527]
[1642497533460,2.72675909,3132.6,3131.9,0.1275]
[1642497533653,4.5277,3132.5,3131.9,0.1275]
[1642497533849,4.5277,3132.5,3132.0,0.00170527]
[1642497533850,0.12883685,3132.5,3132.0,0.00170527]
[1642497534251,0.00113685,3132.5,3132.4,1.55656868]
[1642497534450,0.00113685,3132.5,3131.9,0.00227369]
[1642497535053,0.00113685,3132.5,3132.0,0.1277]
[1642497535255,0.00113685,3132.5,3132.3,0.01208249]
[1642497535451,0.00113685,3132.5,3132.4,4.1605]
[1642497535751,2.72675909,3132.7,3132.4,0.8105]
[1642497535752,1.39969594,3132.7,3132.4,0.8105]
[1642497535953,4.08617785,3133.3,3132.6,1.40944705]
[1642497536152,4.08617785,3133.3,3132.7,0.383]
[1642497536352,0.00397896,3133.2,3132.7,0.383]
[1642497536751,0.00341054,3133.1,3132.7,0.383]
[1642497537196,0.00284212,3133.0,3132.8,0.1275]
[1642497537599,0.00227369,3132.9,3132.8,0.1275]
[1642497537900,6.89558601,3134.1,3132.9,0.383]
[1642497537901,0.00511582,3133.8,3132.9,0.383]
[1642497538099,0.00511582,3133.8,3133.0,3.34588426]
[1642497538299,0.00454739,3133.7,3133.1,0.383]
[1642497538500,0.00454739,3133.7,3133.3,0.79759]
[1642497538701,0.00397897,3133.6,3133.4,0.383]
[1642497538901,2.21886769,3134.2,3133.6,3.05]
[1642497539103,2.21886769,3134.3,3133.7,0.5105]
[1642497539300,2.21886769,3134.3,3133.8,0.383]
[1642497539301,0.00284212,3134.1,3133.8,0.383]
[1642497539502,0.00284212,3134.1,3133.9,1.70356992]
[1642497539702,0.00227369,3134.0,3133.9,0.383]
[1642497540405,3.45227369,3134.0,3133.9,0.383]
[1642497540602,3.45227369,3134.0,3132.8,0.92526]
[1642497540803,0.1275,3133.9,3132.8,1.23873198]
[1642497541075,0.1275,3133.9,3132.9,0.00397897]
[1642497541076,0.12920527,3133.9,3132.9,0.00397897]
[1642497541269,0.00113685,3133.8,3132.9,0.00397897]
[1642497541468,0.1275,3133.7,3132.9,0.00397897]
[1642497541668,0.00113685,3133.8,3133.0,0.383]
[1642497542068,1.30979371,3133.7,3133.1,0.00284212]
[1642497542270,0.00113685,3133.8,3133.1,0.00284212]
[1642497542470,0.00113685,3133.8,3133.2,0.383]
[1642497542869,0.00113685,3133.8,3133.3,4.78995375]
[1642497543173,0.00113685,3133.8,3133.4,1.60134413]
[1642497543373,1.48864758,3134.4,3133.6,5.3]
[1642497543573,0.89096769,3134.6,3133.7,11.30816447]
[1642497543771,0.00170527,3134.1,3133.9,0.1133962]
[1642497543970,0.89096769,3134.6,3134.2,0.88660906]
[1642497544170,0.89096769,3134.6,3134.3,0.5105]
[1642497544369,3.70068454,3135.3,3134.3,0.5105]
[1642497544370,6.66327055,3135.3,3134.4,3.73635369]
[1642497544571,2.96258601,3135.3,3134.5,0.383]
[1642497544810,0.00170527,3134.8,3134.5,0.5105]
[1642497545011,2.96258601,3135.3,3134.5,0.5105]
[1642497545012,2.96258601,3135.3,3134.6,5.3]
[1642497545214,1.63468601,3135.3,3134.8,0.12955525]
[1642497545410,8.29888454,3135.7,3134.8,0.12955525]
[1642497545411,3.70068454,3135.7,3135.2,0.01297805]
[1642497545611,3.70068454,3135.7,3135.3,0.5105]
[1642497545816,6.23888663,3136.7,3135.6,0.0957593]
[1642497545817,2.98238931,3135.9,3135.6,0.0957593]
[1642497546014,2.40038664,3136.4,3135.8,5.3]
[1642497546212,4.97602293,3136.8,3136.0,5.3]
[1642497546413,0.00113685,3136.3,3136.1,0.5105]
[1642497546612,0.00113685,3136.3,3136.1,1.72920462]
[1642497546813,3.64975978,3136.8,3136.7,1.50886747]
[1642497547014,3.64975978,3136.8,3136.7,0.383]
[1642497547212,3.64975978,3136.8,3136.7,0.683]
[1642497547411,3.64975978,3136.8,3136.7,0.383]
[1642497547711,4.2243,3137.1,3136.7,0.383]
[1642497547712,3.59707133,3136.9,3136.8,0.08930851]
[1642497547915,3.59707133,3136.9,3136.4,0.383]
[1642497548112,3.59707133,3136.9,3136.4,1.82374078]
[1642497548113,0.1275,3136.8,3136.4,1.82374078]
[1642497548558,0.0022737,3136.7,3136.5,0.40333304]
[1642497548756,0.0022737,3136.7,3136.6,1.59341]
[1642497548959,4.2243,3137.1,3136.6,1.59341]
[1642497549159,1.45026356,3137.8,3136.7,4.5]
[1642497549358,1.45026356,3137.8,3136.8,0.383]
[1642497549359,0.00397897,3137.0,3136.8,0.383]
[1642497549557,0.00397897,3137.0,3136.9,0.383]
[1642497549759,2.95542699,3137.8,3136.4,0.383]
[1642497549760,24.82857054,3136.9,3136.4,0.383]
[1642497549961,24.82857054,3136.9,3135.9,0.00113685]
[1642497549962,0.13091054,3136.9,3135.9,0.00113685]
[1642497550163,0.00284212,3136.8,3135.9,0.00113685]
[1642497550359,0.1275,3136.7,3135.9,0.00227369]
[1642497550558,1.25125075,3136.1,3135.9,0.00227369]
[1642497550964,5.4275,3136.0,3135.9,0.00227369]
[1642497551159,5.3,3135.9,3135.8,7.369e-05]
[1642497551360,5.4275,3135.9,3135.8,7.369e-05]
[1642497551763,5.4275,3135.9,3134.0,3.20086803]
[1642497551764,6.2498,3135.8,3133.8,3.1914213]
[1642497552067,0.96264758,3135.2,3133.9,0.01136847]
[1642497552332,0.9498,3134.0,3133.9,0.01136847]
[1642497552530,0.9498,3134.0,3133.7,0.01250532]
[1642497552928,0.9498,3134.0,3133.6,0.01234253]
[1642497553128,0.9498,3134.0,3133.7,0.1275]
[1642497553327,0.9498,3134.0,3133.8,1.36993763]
[1642497553531,0.9498,3134.0,3133.8,0.01193689]
[1642497554130,0.9498,3134.0,3133.6,0.01307374]
[1642497554628,0.9498,3133.8,3133.6,0.01307374]
[1642497555629,1.12253502,3133.9,3133.6,0.01307374]
[1642497555630,6.3773,3133.7,3133.6,0.01307374]
[1642497555829,0.9498,3133.7,3133.6,0.01307374]
[1642497556062,0.9498,3133.7,3133.6,100.01307374]
[1642497556660,0.9498,3133.7,3133.6,123.04957574]
[1642497556863,0.9498,3133.7,3133.6,121.68766974]
[1642497557062,1.48659731,3134.4,3133.7,4.3]
[1642497557361,1.48659731,3134.4,3133.6,126.66659509]
[1642497557362,1.48659731,3134.4,3134.3,1.3120967]
[1642497557759,1.48659731,3134.4,3134.3,2.11853148]
[1642497557962,1.48659731,3134.4,3134.3,90.46703148]
[1642497558163,0.1275,3135.4,3134.3,61.66257872]
[1642497558361,0.15879731,3135.5,3134.3,82.46257872]
[1642497558565,0.15879731,3135.5,3134.6,1.59416]
[1642497558762,0.15879731,3135.5,3135.2,1.52961552]
[1642497558964,2.23245584,3135.7,3135.3,0.79712]
[1642497559162,1.20269822,3136.0,3135.3,0.80053054]
[1642497559361,1.20269822,3136.0,3135.4,0.00284212]
[1642497559810,6.17965584,3136.3,3135.5,0.383]
[1642497560013,6.17965584,3136.3,3135.4,0.00284212]
[1642497560014,0.01241941,3135.8,3135.4,0.00284212]
[1642497560210,0.01241941,3135.8,3135.6,0.00170527]
[1642497560211,5.4775,3135.7,3135.6,0.00170527]
[1642497560410,5.4775,3135.7,3134.8,0.00625266]
[1642497560610,5.35,3135.7,3134.8,0.00625266]
[1642497560813,0.1275,3136.1,3134.8,0.00625266]
[1642497560814,1.27537003,3136.1,3134.9,1.59427]
[1642497561014,0.1275,3136.1,3134.9,1.72177]
[1642497561219,0.1275,3136.1,3135.0,1.19813489]
[1642497561415,0.1275,3136.1,3135.1,0.112952]
[1642497561614,0.00170527,3136.2,3135.2,0.383]
[1642497561915,2.18359268,3136.7,3135.4,4.25]
[1642497562114,2.18359268,3136.7,3135.5,3.61774548]
[1642497562314,2.18359268,3136.7,3135.6,0.383]
[1642497562315,0.0022737,3136.5,3135.6,0.383]
[1642497562516,0.0022737,3136.5,3135.6,0.13034211]
[1642497562714,0.12920528,3136.4,3135.7,0.00227369]
[1642497563114,1.13551228,3135.8,3135.3,0.00454738]
[1642497563316,1.13551228,3135.8,3135.4,0.00397896]
[1642497563574,1.13551228,3135.8,3135.3,0.79718]
[1642497563575,1.13551228,3135.8,3135.3,0.80172738]
[1642497563778,0.1275,3136.2,3135.4,0.00397896]
[1642497564780,1.54077738,3136.2,3135.4,0.00397896]
[1642497565181,1.54077738,3136.2,3135.3,0.00454738]
[1642497565182,3.78843117,3136.1,3135.3,0.00454738]
[1642497565386,0.1275,3136.0,3135.0,0.00625265]
[1642497565582,0.01294073,3135.4,3134.3,0.01023162]
[1642497565781,0.01294073,3135.4,3133.5,0.39]
[1642497565782,0.1275,3135.3,3134.2,0.01080004]
[1642497565983,0.1275,3135.3,3133.6,0.1275]
[1642497565984,1.42575039,3134.8,3134.3,1.46832901]
[1642497566185,0.1275,3135.3,3134.3,1.46832901]
[1642497566387,0.1275,3135.3,3134.4,0.00966319]
[1642497566684,0.1275,3135.3,3134.0,0.01193689]
[1642497567303,1.23871197,3134.6,3134.0,0.01193689]
[1642497567503,1.35646289,3134.4,3134.0,0.01193689]
[1642497567707,1.35646289,3134.4,3133.5,0.007]
[1642497567708,5.35,3134.2,3133.5,0.007]
[1642497567911,0.1275,3134.1,3133.5,0.007]
[1642497568207,0.1275,3134.1,3133.6,0.00227369]
[1642497569208,0.1275,3134.1,3133.6,0.79987369]
[1642497569407,0.00170527,3134.3,3133.7,0.01276267]
[1642497569609,0.00170527,3134.3,3133.8,0.5105]
[1642497569806,1.47852443,3134.8,3133.9,3.15]
[1642497570008,1.47852443,3134.8,3134.0,0.5105]
[1642497570212,0.00284212,3134.7,3134.2,0.79725]
[1642497570412,1.47852443,3134.8,3134.4,2.9]
[1642497570610,1.47852443,3135.5,3134.5,0.1275]
[1642497570809,1.47852443,3135.5,3134.6,0.383]
[1642497571056,0.00227369,3135.1,3134.7,0.1275]
[1642497571256,0.00227369,3135.1,3134.8,0.383]
[1642497571457,1.47852443,3135.5,3134.8,0.383]
[1642497571458,0.00170527,3135.0,3134.8,0.383]
[1642497571858,0.00113684,3134.9,3134.8,1.59124019]
[1642497572055,0.00113684,3134.9,3134.8,0.383]
[1642497572255,3.65511581,3134.9,3134.8,0.383]
[1642497573259,0.00511581,3134.9,3134.8,0.383]
[1642497573661,0.00511581,3134.9,3134.8,1.18029]
[1642497575209,4.35511581,3134.9,3134.5,0.00113685]
[1642497575609,0.1275,3134.8,3134.1,0.00341054]
[1642497575809,4.35511581,3134.9,3133.5,0.007]
[1642497575810,4.35511581,3134.9,3133.9,0.00454739]
[1642497576009,4.35511581,3134.9,3134.3,1.40385893]
[1642497576209,0.00511581,3134.9,3134.3,2.99851893]
[1642497576409,0.00511581,3134.9,3134.4,0.79903527]
[1642497576811,0.00511581,3134.9,3134.5,0.00113685]
[1642497577810,0.00511581,3134.9,3134.6,0.1275]
[1642497578010,0.00511581,3134.9,3134.7,1.26952041]
[1642497578208,0.00511581,3134.9,3134.8,0.1275]
[1642497578470,0.00511581,3134.9,3134.8,1.92056847]
[1642497579061,1.41507045,3135.8,3134.8,0.5105]
[1642497579260,1.41507045,3135.8,3134.8,0.38754739]
[1642497579463,2.41507045,3135.8,3134.9,0.00397897]
[1642497579661,1.41507045,3135.8,3134.9,0.00397897]
[1642497580662,2.72445107,3135.7,3134.9,0.00397897]
[1642497581364,1.11136873,3135.3,3134.9,0.00397897]
[1642497581764,0.1275,3135.6,3134.9,0.00397897]
[1642497582807,2.72445107,3135.5,3134.9,0.80126897]
[1642497583007,1.17034792,3135.4,3134.9,0.80126897]
[1642497583207,1.17034792,3135.4,3135.0,0.00341054]
[1642497584312,2.72445107,3135.3,3135.0,0.00341054]
[1642497584514,2.72445107,3135.3,3134.9,0.00397897]
[1642497585210,2.72445107,3135.7,3134.9,0.00397897]
[1642497585412,1.14279243,3135.4,3134.9,0.00397897]
[1642497585610,2.72445107,3135.7,3134.9,0.00397897]
[1642497586058,2.72445107,3135.7,3135.0,0.5105]
[1642497586258,1.47852443,3136.0,3135.4,5.3]
[1642497586456,1.47852443,3136.1,3135.6,18.52]
[1642497586654,1.47852443,3136.1,3135.7,0.383]
[1642497587059,0.00113685,3136.0,3135.7,0.383]
[1642497587658,0.00113685,3136.0,3135.5,0.1275]
[1642497587659,5.3,3135.9,3135.5,0.1275]
[1642497587861,6.39475575,3135.6,3135.5,0.0001]
[1642497588157,5.3,3135.6,3135.5,0.0001]
[1642497588759,0.1404405,3135.9,3135.5,0.0001]
[1642497589162,0.1404405,3135.9,3135.6,0.00113684]
[1642497589561,5.18731635,3135.7,3135.6,0.00113684]